[Event "Early-Titled-Tuesday-Blitz-August-29-2023"]
[Site "Chess.com"]
[Date "2023.08.29"]
[Round "3"]
[White "mishanick"]
[Black "valemava"]
[Result "1-0"]
[WhiteElo "3120"]
[BlackElo "2329"]
[TimeControl "180+1"]
[EndTime "8:29:32 PDT"]
[Termination "mishanick won by checkmate"]

1. d4 {[%clk 0:03:00.9]} 1... d5 {[%clk 0:02:53.4]} 2. c4 {[%clk 0:03:01.4]}
2... e6 {[%clk 0:02:53.2]} 3. Nc3 {[%clk 0:03:02.1]} 3... Nf6 {[%clk 0:02:51.9]}
4. cxd5 {[%clk 0:03:02.6]} 4... exd5 {[%clk 0:02:51.4]} 5. Bg5 {[%clk
0:03:02.7]} 5... Be7 {[%clk 0:02:50.5]} 6. e3 {[%clk 0:03:03.1]} 6... Nbd7
{[%clk 0:02:44.4]} 7. Bd3 {[%clk 0:03:02.5]} 7... h6 {[%clk 0:02:41.4]} 8. Bf4
{[%clk 0:03:02.3]} 8... c6 {[%clk 0:02:40.8]} 9. h3 {[%clk 0:03:02.4]} 9... Nf8
{[%clk 0:02:39.2]} 10. Nf3 {[%clk 0:03:02.3]} 10... Ne6 {[%clk 0:02:38.8]} 11.
Be5 {[%clk 0:03:03]} 11... Bd6 {[%clk 0:02:38.4]} 12. O-O {[%clk 0:03:02.6]}
12... Qc7 {[%clk 0:02:36.2]} 13. Qc2 {[%clk 0:03:02.2]} 13... Nd7 {[%clk
0:02:23.6]} 14. Bxd6 {[%clk 0:02:58.1]} 14... Qxd6 {[%clk 0:02:24.1]} 15. e4
{[%clk 0:02:58.5]} 15... dxe4 {[%clk 0:02:15.7]} 16. Nxe4 {[%clk 0:02:59.4]}
16... Qe7 {[%clk 0:01:52.3]} 17. Rfe1 {[%clk 0:02:59]} 17... O-O {[%clk
0:01:51.3]} 18. Rad1 {[%clk 0:02:57.5]} 18... Nf6 {[%clk 0:01:49.2]} 19. Ng3
{[%clk 0:02:55.5]} 19... Qd6 {[%clk 0:01:45.6]} 20. Nf5 {[%clk 0:02:55.6]} 20...
Qb4 {[%clk 0:01:40.5]} 21. a3 {[%clk 0:02:52.8]} 21... Qa5 {[%clk 0:01:39.9]}
22. Ne5 {[%clk 0:02:52.2]} 22... Nf4 {[%clk 0:01:31]} 23. Ne7+ {[%clk
0:02:47.7]} 23... Kh8 {[%clk 0:01:28.3]} 24. Bc4 {[%clk 0:02:42.9]} 24... N6d5
{[%clk 0:01:14]} 25. Bxd5 {[%clk 0:02:19.4]} 25... cxd5 {[%clk 0:01:08.3]} 26.
g3 {[%clk 0:01:54]} 26... Nxh3+ {[%clk 0:01:06.3]} 27. Kg2 {[%clk 0:01:54.5]}
27... Ng5 {[%clk 0:01:06.2]} 28. f3 {[%clk 0:00:59.7]} 28... Bh3+ {[%clk
0:00:57.2]} 29. Kh2 {[%clk 0:00:59.5]} 29... Be6 {[%clk 0:00:56.6]} 30. Nf5
{[%clk 0:00:56]} 30... Rac8 {[%clk 0:00:54.8]} 31. Qd3 {[%clk 0:00:56.5]} 31...
Qa6 {[%clk 0:00:44.1]} 32. Qb1 {[%clk 0:00:54.8]} 32... Qa4 {[%clk 0:00:42.4]}
33. Rd2 {[%clk 0:00:53.4]} 33... Qb3 {[%clk 0:00:40]} 34. Kg2 {[%clk 0:00:48.4]}
34... Kg8 {[%clk 0:00:23.1]} 35. Ne7+ {[%clk 0:00:41.5]} 35... Kh8 {[%clk
0:00:21.9]} 36. Nxc8 {[%clk 0:00:42]} 36... Rxc8 {[%clk 0:00:21]} 37. Rc1 {[%clk
0:00:38.7]} 37... Rxc1 {[%clk 0:00:19.6]} 38. Qxc1 {[%clk 0:00:39.6]} 38... Qe3
{[%clk 0:00:17.5]} 39. Qc3 {[%clk 0:00:37.2]} 39... Qe1 {[%clk 0:00:17.1]} 40.
Rc2 {[%clk 0:00:33.2]} 40... Qd1 {[%clk 0:00:16]} 41. Qd3 {[%clk 0:00:30]} 41...
Qxd3 {[%clk 0:00:13.4]} 42. Nxd3 {[%clk 0:00:29.9]} 42... Bh3+ {[%clk
0:00:10.4]} 43. Kf2 {[%clk 0:00:29.3]} 43... Bf5 {[%clk 0:00:10.7]} 44. Rc3
{[%clk 0:00:29.8]} 44... Ne6 {[%clk 0:00:07.3]} 45. Ke3 {[%clk 0:00:30]} 45...
Bxd3 {[%clk 0:00:06.4]} 46. Kxd3 {[%clk 0:00:30.9]} 46... g5 {[%clk 0:00:05.7]}
47. Rc8+ {[%clk 0:00:31.3]} 47... Kg7 {[%clk 0:00:05.6]} 48. Rb8 {[%clk
0:00:32.2]} 48... h5 {[%clk 0:00:04]} 49. Rxb7 {[%clk 0:00:31.6]} 49... h4
{[%clk 0:00:04.9]} 50. gxh4 {[%clk 0:00:31.6]} 50... gxh4 {[%clk 0:00:05.8]} 51.
Ke3 {[%clk 0:00:32.3]} 51... Ng5 {[%clk 0:00:04.7]} 52. Rxa7 {[%clk 0:00:30.8]}
52... h3 {[%clk 0:00:04.5]} 53. Rc7 {[%clk 0:00:31.4]} 53... h2 {[%clk
0:00:04.9]} 54. Rc1 {[%clk 0:00:32]} 54... Nh3 {[%clk 0:00:05]} 55. Rh1 {[%clk
0:00:32.2]} 55... Ng5 {[%clk 0:00:05.4]} 56. Rxh2 {[%clk 0:00:32.6]} 56... Ne6
{[%clk 0:00:06.3]} 57. a4 {[%clk 0:00:32.5]} 57... Kf6 {[%clk 0:00:07.2]} 58. a5
{[%clk 0:00:32.9]} 58... Nc7 {[%clk 0:00:06.2]} 59. a6 {[%clk 0:00:33.8]} 59...
Nxa6 {[%clk 0:00:06.6]} 60. Rh6+ {[%clk 0:00:34.6]} 60... Kf5 {[%clk 0:00:06.3]}
61. Rxa6 {[%clk 0:00:35.5]} 61... f6 {[%clk 0:00:06.9]} 62. b4 {[%clk 0:00:36]}
62... Kg5 {[%clk 0:00:06.4]} 63. b5 {[%clk 0:00:36.9]} 63... f5 {[%clk
0:00:07.2]} 64. b6 {[%clk 0:00:37.8]} 64... f4+ {[%clk 0:00:08.1]} 65. Kd3
{[%clk 0:00:38.4]} 65... Kf5 {[%clk 0:00:08.9]} 66. b7 {[%clk 0:00:39.1]} 66...
Kg5 {[%clk 0:00:09.7]} 67. b8=Q {[%clk 0:00:39.8]} 67... Kh4 {[%clk 0:00:10.6]}
68. Qxf4+ {[%clk 0:00:39.5]} 68... Kh3 {[%clk 0:00:10.5]} 69. Rh6+ {[%clk
0:00:40.1]} 69... Kg2 {[%clk 0:00:11.4]} 70. Rh2+ {[%clk 0:00:40.4]} 70... Kf1
{[%clk 0:00:10.9]} 71. Qc1# {[%clk 0:00:40.4]} 1-0

[Event "Early-Titled-Tuesday-Blitz-August-29-2023"]
[Site "Chess.com"]
[Date "2023.08.29"]
[Round "3"]
[White "crazy_m_attack"]
[Black "Goffredo_Fofi"]
[Result "1-0"]
[WhiteElo "2340"]
[BlackElo "2551"]
[TimeControl "180+1"]
[EndTime "8:29:37 PDT"]
[Termination "crazy_m_attack won on time"]

1. e4 {[%clk 0:03:00.9]} 1... g6 {[%clk 0:03:00.9]} 2. d4 {[%clk 0:03:00.3]}
2... Bg7 {[%clk 0:03:01.6]} 3. Nc3 {[%clk 0:03:00.4]} 3... c6 {[%clk 0:03:02.3]}
4. Nf3 {[%clk 0:02:57.8]} 4... d5 {[%clk 0:03:02.5]} 5. Bd3 {[%clk 0:02:57.9]}
5... Bg4 {[%clk 0:03:01.5]} 6. e5 {[%clk 0:02:52]} 6... e6 {[%clk 0:03:00.2]} 7.
h3 {[%clk 0:02:40.1]} 7... Bxf3 {[%clk 0:02:59.7]} 8. Qxf3 {[%clk 0:02:41]} 8...
c5 {[%clk 0:02:56.1]} 9. Nb5 {[%clk 0:02:38.1]} 9... Qe7 {[%clk 0:02:37.6]} 10.
Nd6+ {[%clk 0:02:35.4]} 10... Kf8 {[%clk 0:02:37.6]} 11. Bg5 {[%clk 0:02:34.3]}
11... Qc7 {[%clk 0:02:14.7]} 12. Bb5 {[%clk 0:01:53.2]} 12... Nc6 {[%clk
0:02:14.1]} 13. Bxc6 {[%clk 0:01:42.1]} 13... bxc6 {[%clk 0:02:14.1]} 14. Qa3
{[%clk 0:01:25.1]} 14... f6 {[%clk 0:01:32.7]} 15. exf6 {[%clk 0:00:28.4]} 15...
Nxf6 {[%clk 0:01:33.6]} 16. Qxc5 {[%clk 0:00:21.8]} 16... Kg8 {[%clk 0:01:33.9]}
17. Bf4 {[%clk 0:00:07.1]} 17... Bf8 {[%clk 0:01:27.7]} 18. O-O {[%clk
0:00:03.4]} 18... Rd8 {[%clk 0:01:17.6]} 19. Nb5 {[%clk 0:00:03.7]} 19... Qxf4
{[%clk 0:01:16.8]} 20. Qxc6 {[%clk 0:00:02.9]} 20... Qf5 {[%clk 0:00:43.7]} 21.
Rae1 {[%clk 0:00:03.3]} 21... Ne4 {[%clk 0:00:35.1]} 22. f3 {[%clk 0:00:03]}
22... Ng3 {[%clk 0:00:34.5]} 23. Rf2 {[%clk 0:00:03.3]} 23... Qf7 {[%clk
0:00:23.4]} 24. Qxe6 {[%clk 0:00:01.6]} 24... Nf5 {[%clk 0:00:17.3]} 25. Qxf7+
{[%clk 0:00:02.1]} 25... Kxf7 {[%clk 0:00:18.2]} 26. g4 {[%clk 0:00:02.7]} 26...
Nd6 {[%clk 0:00:17.1]} 27. Nc3 {[%clk 0:00:02.4]} 27... Bg7 {[%clk 0:00:15.3]}
28. Rd2 {[%clk 0:00:01.3]} 28... Nc4 {[%clk 0:00:15.4]} 29. Rdd1 {[%clk
0:00:01.9]} 29... Nxb2 {[%clk 0:00:15]} 30. Rd2 {[%clk 0:00:02.6]} 30... Nc4
{[%clk 0:00:15.2]} 31. Rdd1 {[%clk 0:00:03.1]} 31... Rd7 {[%clk 0:00:14.3]} 32.
Na4 {[%clk 0:00:03.4]} 32... Rb8 {[%clk 0:00:12]} 33. Nc5 {[%clk 0:00:03.4]}
33... Re7 {[%clk 0:00:11.7]} 34. c3 {[%clk 0:00:02.5]} 34... Rb2 {[%clk
0:00:10.8]} 35. Rxe7+ {[%clk 0:00:01.6]} 35... Kxe7 {[%clk 0:00:11.7]} 36. Re1+
{[%clk 0:00:02.4]} 36... Kf7 {[%clk 0:00:12.4]} 37. Nd3 {[%clk 0:00:02.3]} 37...
Rd2 {[%clk 0:00:11.8]} 38. Nb4 {[%clk 0:00:03.2]} 38... Rxa2 {[%clk 0:00:09.1]}
39. Nxd5 {[%clk 0:00:03.6]} 39... Nd2 {[%clk 0:00:07.2]} 40. Re7+ {[%clk
0:00:03.9]} 40... Kf8 {[%clk 0:00:07.7]} 41. Rb7 {[%clk 0:00:03.1]} 41... Nxf3+
{[%clk 0:00:07.9]} 42. Kf1 {[%clk 0:00:03.8]} 42... Bh6 {[%clk 0:00:06.8]} 43.
Rb8+ {[%clk 0:00:03.7]} 43... Kf7 {[%clk 0:00:06.6]} 44. Rb7+ {[%clk 0:00:04.2]}
44... Ke6 {[%clk 0:00:06.8]} 45. Nb4 {[%clk 0:00:03.4]} 45... Rb2 {[%clk
0:00:05.5]} 46. d5+ {[%clk 0:00:03.5]} 46... Kf6 {[%clk 0:00:05.2]} 47. d6
{[%clk 0:00:03.6]} 47... Be3 {[%clk 0:00:05.4]} 48. Nd5+ {[%clk 0:00:02.8]}
48... Kg5 {[%clk 0:00:03.6]} 49. Rxb2 {[%clk 0:00:03.7]} 49... Bc5 {[%clk
0:00:03.5]} 50. d7 {[%clk 0:00:04]} 1-0

[Event "Early-Titled-Tuesday-Blitz-August-29-2023"]
[Site "Chess.com"]
[Date "2023.08.29"]
[Round "3"]
[White "NasirAkylbekov"]
[Black "Frolyanov_D"]
[Result "0-1"]
[WhiteElo "2402"]
[BlackElo "2606"]
[TimeControl "180+1"]
[EndTime "8:29:38 PDT"]
[Termination "Frolyanov_D won by resignation"]

1. e4 {[%clk 0:03:00]} 1... e5 {[%clk 0:02:58.1]} 2. Nf3 {[%clk 0:02:59.1]} 2...
Nf6 {[%clk 0:02:58.2]} 3. Nc3 {[%clk 0:02:56.8]} 3... Nc6 {[%clk 0:02:56.7]} 4.
d4 {[%clk 0:02:56.3]} 4... exd4 {[%clk 0:02:57]} 5. Nxd4 {[%clk 0:02:55.4]} 5...
Bb4 {[%clk 0:02:57.4]} 6. Nxc6 {[%clk 0:02:56.2]} 6... bxc6 {[%clk 0:02:57.8]}
7. Bd3 {[%clk 0:02:57.1]} 7... d5 {[%clk 0:02:57.3]} 8. exd5 {[%clk 0:02:58]}
8... O-O {[%clk 0:02:57.2]} 9. O-O {[%clk 0:02:58.3]} 9... cxd5 {[%clk
0:02:57.4]} 10. Bg5 {[%clk 0:02:58.2]} 10... c6 {[%clk 0:02:56.9]} 11. Qf3
{[%clk 0:02:58.5]} 11... Bd6 {[%clk 0:02:50.7]} 12. h3 {[%clk 0:02:57.4]} 12...
Be5 {[%clk 0:02:47.7]} 13. Rae1 {[%clk 0:02:55.5]} 13... Re8 {[%clk 0:02:46.9]}
14. Re2 {[%clk 0:02:47.8]} 14... h6 {[%clk 0:02:39.3]} 15. Bf4 {[%clk
0:02:46.5]} 15... Bxf4 {[%clk 0:02:22]} 16. Qxf4 {[%clk 0:02:44.9]} 16... Be6
{[%clk 0:02:21.8]} 17. Rfe1 {[%clk 0:02:39.6]} 17... c5 {[%clk 0:02:21.4]} 18.
Bf5 {[%clk 0:02:39.5]} 18... d4 {[%clk 0:01:59.9]} 19. Nb5 {[%clk 0:02:34.1]}
19... Bxf5 {[%clk 0:01:27.3]} 20. Rxe8+ {[%clk 0:02:27.7]} 20... Nxe8 {[%clk
0:01:28.2]} 21. Qxf5 {[%clk 0:02:27.9]} 21... a6 {[%clk 0:01:27.6]} 22. Na3
{[%clk 0:02:14.3]} 22... Qa5 {[%clk 0:01:13.8]} 23. Re7 {[%clk 0:02:07.7]} 23...
Nf6 {[%clk 0:00:59]} 24. Re5 {[%clk 0:01:31.7]} 24... Rb8 {[%clk 0:00:56.3]} 25.
Nc4 {[%clk 0:01:24.4]} 25... Qxa2 {[%clk 0:00:54.4]} 26. Rxc5 {[%clk 0:01:23.6]}
26... Qb1+ {[%clk 0:00:39.8]} 27. Kh2 {[%clk 0:01:22.4]} 27... Qe1 {[%clk
0:00:25.4]} 28. Rc8+ {[%clk 0:01:18.3]} 28... Rxc8 {[%clk 0:00:25]} 29. Qxc8+
{[%clk 0:01:19.1]} 29... Kh7 {[%clk 0:00:25.4]} 30. Qf5+ {[%clk 0:01:18.4]}
30... Kg8 {[%clk 0:00:25.3]} 31. Qf4 {[%clk 0:01:13.5]} 31... Qd1 {[%clk
0:00:21.9]} 32. Ne5 {[%clk 0:01:08.6]} 32... Qxc2 {[%clk 0:00:20.1]} 33. Qxd4
{[%clk 0:01:08.3]} 33... Qc7 {[%clk 0:00:20.1]} 34. f4 {[%clk 0:01:07.1]} 34...
a5 {[%clk 0:00:19.8]} 35. Qa4 {[%clk 0:01:00.3]} 35... Kh7 {[%clk 0:00:13.9]}
36. Qa2 {[%clk 0:00:53.5]} 36... Kg8 {[%clk 0:00:11.6]} 37. Qb3 {[%clk
0:00:50.4]} 37... g5 {[%clk 0:00:10.5]} 38. Qg3 {[%clk 0:00:48.5]} 38... Nh5
{[%clk 0:00:09.9]} 39. Qg4 {[%clk 0:00:44.9]} 39... Nxf4 {[%clk 0:00:09.8]} 40.
Nf3 {[%clk 0:00:18.4]} 40... Ne2+ {[%clk 0:00:09.2]} 41. Kh1 {[%clk 0:00:17.2]}
41... Qc1+ {[%clk 0:00:08.4]} 42. Kh2 {[%clk 0:00:17.5]} 42... Qc7+ {[%clk
0:00:07.9]} 43. Kh1 {[%clk 0:00:17.6]} 43... Qc1+ {[%clk 0:00:07.7]} 44. Kh2
{[%clk 0:00:17.6]} 44... Nf4 {[%clk 0:00:08.4]} 45. Qd7 {[%clk 0:00:14.6]} 45...
Qxb2 {[%clk 0:00:08]} 46. Qd8+ {[%clk 0:00:13.9]} 46... Kg7 {[%clk 0:00:07.9]}
47. Qd4+ {[%clk 0:00:13.4]} 47... Qxd4 {[%clk 0:00:08.1]} 48. Nxd4 {[%clk
0:00:14.2]} 48... a4 {[%clk 0:00:08.7]} 49. Nf5+ {[%clk 0:00:14.6]} 49... Kf6
{[%clk 0:00:07.9]} 50. Nd6 {[%clk 0:00:15.1]} 50... a3 {[%clk 0:00:07.9]} 51.
Ne4+ {[%clk 0:00:15.6]} 51... Ke5 {[%clk 0:00:07.6]} 52. Nc3 {[%clk 0:00:16.3]}
52... Nd5 {[%clk 0:00:07.3]} 53. Na2 {[%clk 0:00:16.1]} 53... Kd4 {[%clk
0:00:07.6]} 54. Kg3 {[%clk 0:00:16.7]} 54... Kc4 {[%clk 0:00:08]} 55. Kg4 {[%clk
0:00:16.8]} 55... Nb4 {[%clk 0:00:08.2]} 56. Nc1 {[%clk 0:00:15.8]} 56... Nd3
{[%clk 0:00:08.4]} 57. Na2 {[%clk 0:00:15.6]} 57... Kb3 {[%clk 0:00:08.5]} 0-1

[Event "Early-Titled-Tuesday-Blitz-August-29-2023"]
[Site "Chess.com"]
[Date "2023.08.29"]
[Round "3"]
[White "JoseRemolar"]
[Black "amanjazu"]
[Result "1-0"]
[WhiteElo "2504"]
[BlackElo "2310"]
[TimeControl "180+1"]
[EndTime "8:29:44 PDT"]
[Termination "JoseRemolar won by checkmate"]

1. d4 {[%clk 0:03:00.9]} 1... f5 {[%clk 0:02:50.8]} 2. Nf3 {[%clk 0:03:00.3]}
2... Nf6 {[%clk 0:02:51]} 3. b3 {[%clk 0:02:49.8]} 3... g6 {[%clk 0:02:50.8]} 4.
Bb2 {[%clk 0:02:50.4]} 4... Bg7 {[%clk 0:02:51.4]} 5. e3 {[%clk 0:02:50.9]} 5...
d6 {[%clk 0:02:51.8]} 6. Bd3 {[%clk 0:02:50.7]} 6... O-O {[%clk 0:02:52.7]} 7.
Nbd2 {[%clk 0:02:51.2]} 7... Nbd7 {[%clk 0:02:48.9]} 8. O-O {[%clk 0:02:50.3]}
8... Qe8 {[%clk 0:02:48.6]} 9. Re1 {[%clk 0:02:44.5]} 9... e5 {[%clk 0:02:46.6]}
10. e4 {[%clk 0:02:44.9]} 10... f4 {[%clk 0:02:45.1]} 11. Nc4 {[%clk 0:02:45.1]}
11... Nh5 {[%clk 0:02:38.1]} 12. dxe5 {[%clk 0:02:40.9]} 12... dxe5 {[%clk
0:02:38.1]} 13. Ba3 {[%clk 0:02:38.4]} 13... Rf6 {[%clk 0:02:33.9]} 14. Qd2
{[%clk 0:02:29.4]} 14... b5 {[%clk 0:02:23.6]} 15. Na5 {[%clk 0:02:24.8]} 15...
a6 {[%clk 0:02:15.9]} 16. c4 {[%clk 0:02:19.2]} 16... Nf8 {[%clk 0:02:03.5]} 17.
Qe2 {[%clk 0:02:03.6]} 17... Bd7 {[%clk 0:01:51.9]} 18. Bb2 {[%clk 0:01:56.3]}
18... Rd6 {[%clk 0:01:41.9]} 19. c5 {[%clk 0:01:54]} 19... Re6 {[%clk
0:01:41.4]} 20. Rac1 {[%clk 0:01:48.5]} 20... c6 {[%clk 0:01:35.8]} 21. b4
{[%clk 0:01:48.3]} 21... Re7 {[%clk 0:01:31.7]} 22. Nb7 {[%clk 0:01:36.7]} 22...
Qb8 {[%clk 0:01:05.4]} 23. Na5 {[%clk 0:01:16.5]} 23... Ne6 {[%clk 0:00:51.1]}
24. Bc2 {[%clk 0:01:12.9]} 24... Kh8 {[%clk 0:00:38.6]} 25. Bb3 {[%clk
0:01:09.7]} 25... Nd4 {[%clk 0:00:38.9]} 26. Nxd4 {[%clk 0:00:57.8]} 26... exd4
{[%clk 0:00:39.8]} 27. Qd3 {[%clk 0:00:57.2]} 27... f3 {[%clk 0:00:22.9]} 28.
Qxf3 {[%clk 0:00:55.9]} 28... Qe5 {[%clk 0:00:18.8]} 29. Rcd1 {[%clk 0:00:48.7]}
29... Rf8 {[%clk 0:00:16.9]} 30. Qxf8+ {[%clk 0:00:46.4]} 30... Bxf8 {[%clk
0:00:16.4]} 31. Bxd4 {[%clk 0:00:46.8]} 31... Bg7 {[%clk 0:00:15.2]} 32. Bxe5
{[%clk 0:00:45.7]} 32... Bxe5 {[%clk 0:00:16.1]} 33. a3 {[%clk 0:00:29.3]} 33...
Nf4 {[%clk 0:00:11.7]} 34. g3 {[%clk 0:00:28.3]} 34... Nh3+ {[%clk 0:00:08.1]}
35. Kg2 {[%clk 0:00:28.4]} 35... Bc3 {[%clk 0:00:06.1]} 36. Re3 {[%clk
0:00:25.1]} 36... Bb2 {[%clk 0:00:03.6]} 37. Rxd7 {[%clk 0:00:14.1]} 37... Rxd7
{[%clk 0:00:04.5]} 38. Kxh3 {[%clk 0:00:14.7]} 38... Bxa3 {[%clk 0:00:05]} 39.
Nxc6 {[%clk 0:00:14.3]} 39... Rc7 {[%clk 0:00:05]} 40. Bd5 {[%clk 0:00:14.6]}
40... Bc1 {[%clk 0:00:05.9]} 41. Re1 {[%clk 0:00:13.6]} 41... Bd2 {[%clk
0:00:06.1]} 42. Re2 {[%clk 0:00:14.2]} 42... Bxb4 {[%clk 0:00:06.4]} 43. Nxb4
{[%clk 0:00:14.1]} 43... a5 {[%clk 0:00:07.2]} 44. Nc6 {[%clk 0:00:10.9]} 44...
a4 {[%clk 0:00:06.5]} 45. e5 {[%clk 0:00:11.3]} 45... Kg7 {[%clk 0:00:06.1]} 46.
e6 {[%clk 0:00:11.6]} 46... Kf8 {[%clk 0:00:06.7]} 47. Nb4 {[%clk 0:00:10.1]}
47... Ke8 {[%clk 0:00:07.6]} 48. Bc6+ {[%clk 0:00:10.1]} 48... Ke7 {[%clk
0:00:07.9]} 49. Bxb5 {[%clk 0:00:10.7]} 49... Rxc5 {[%clk 0:00:07.4]} 50. Nc6+
{[%clk 0:00:10.4]} 50... Ke8 {[%clk 0:00:05.5]} 51. Bxa4 {[%clk 0:00:09.7]}
51... Rh5+ {[%clk 0:00:04.4]} 52. Kg2 {[%clk 0:00:09.1]} 52... g5 {[%clk
0:00:04.2]} 53. e7 {[%clk 0:00:08.9]} 53... g4 {[%clk 0:00:04.7]} 54. Nd8+
{[%clk 0:00:08.6]} 54... Rb5 {[%clk 0:00:03.5]} 55. Bxb5# {[%clk 0:00:07.6]} 1-0

[Event "Early-Titled-Tuesday-Blitz-August-29-2023"]
[Site "Chess.com"]
[Date "2023.08.29"]
[Round "3"]
[White "BlitzWizard04"]
[Black "Yuruultei"]
[Result "1-0"]
[WhiteElo "2605"]
[BlackElo "2399"]
[TimeControl "180+1"]
[EndTime "8:29:45 PDT"]
[Termination "BlitzWizard04 won on time"]

1. e4 {[%clk 0:02:57.6]} 1... c5 {[%clk 0:02:57.4]} 2. Nf3 {[%clk 0:02:57.7]}
2... e6 {[%clk 0:02:54.8]} 3. d4 {[%clk 0:02:58.1]} 3... cxd4 {[%clk 0:02:55.5]}
4. Nxd4 {[%clk 0:02:58.9]} 4... Nc6 {[%clk 0:02:52.4]} 5. Nc3 {[%clk 0:02:59.5]}
5... a6 {[%clk 0:02:51.4]} 6. Nxc6 {[%clk 0:02:56.4]} 6... bxc6 {[%clk
0:02:52.3]} 7. Bd3 {[%clk 0:02:55.3]} 7... d5 {[%clk 0:02:49.3]} 8. O-O {[%clk
0:02:55.9]} 8... Nf6 {[%clk 0:02:48.6]} 9. Qe2 {[%clk 0:02:56]} 9... Be7 {[%clk
0:02:48.5]} 10. Bf4 {[%clk 0:02:55]} 10... O-O {[%clk 0:02:47.2]} 11. Rad1
{[%clk 0:02:51.1]} 11... Bb7 {[%clk 0:02:45.8]} 12. a3 {[%clk 0:02:34.8]} 12...
Re8 {[%clk 0:02:39]} 13. b4 {[%clk 0:02:32.2]} 13... a5 {[%clk 0:02:36.5]} 14.
Rb1 {[%clk 0:02:30.1]} 14... axb4 {[%clk 0:02:26.2]} 15. axb4 {[%clk 0:02:31]}
15... Ra3 {[%clk 0:02:24.8]} 16. Bd2 {[%clk 0:02:22]} 16... c5 {[%clk
0:01:53.2]} 17. bxc5 {[%clk 0:02:20.3]} 17... dxe4 {[%clk 0:01:45.1]} 18. Rxb7
{[%clk 0:02:11.8]} 18... exd3 {[%clk 0:01:43.4]} 19. cxd3 {[%clk 0:02:11.4]}
19... Bxc5 {[%clk 0:01:41.2]} 20. Rbb1 {[%clk 0:01:36.5]} 20... Qd7 {[%clk
0:01:22.8]} 21. Rbc1 {[%clk 0:01:27.9]} 21... Ba7 {[%clk 0:01:09.8]} 22. Be3
{[%clk 0:01:24.5]} 22... Bxe3 {[%clk 0:01:05.6]} 23. fxe3 {[%clk 0:01:23.8]}
23... Nd5 {[%clk 0:00:59.9]} 24. Nxd5 {[%clk 0:01:23.4]} 24... Qxd5 {[%clk
0:01:00.8]} 25. d4 {[%clk 0:01:21]} 25... Qe4 {[%clk 0:00:57.3]} 26. Rf3 {[%clk
0:01:02.4]} 26... e5 {[%clk 0:00:47.2]} 27. dxe5 {[%clk 0:00:59.5]} 27... Qxe5
{[%clk 0:00:45.9]} 28. Rcf1 {[%clk 0:00:57.1]} 28... f6 {[%clk 0:00:27]} 29.
Qc4+ {[%clk 0:00:52.2]} 29... Kh8 {[%clk 0:00:25.4]} 30. e4 {[%clk 0:00:47.1]}
30... Rxf3 {[%clk 0:00:21.5]} 31. gxf3 {[%clk 0:00:48]} 31... Qg5+ {[%clk
0:00:18.8]} 32. Kh1 {[%clk 0:00:47.5]} 32... Rd8 {[%clk 0:00:19.3]} 33. Qc7
{[%clk 0:00:45]} 33... Ra8 {[%clk 0:00:18.1]} 34. Rg1 {[%clk 0:00:42.1]} 34...
Qh6 {[%clk 0:00:17.6]} 35. Qb7 {[%clk 0:00:37.4]} 35... Rd8 {[%clk 0:00:17.3]}
36. Qb6 {[%clk 0:00:36.5]} 36... Ra8 {[%clk 0:00:16.2]} 37. Rd1 {[%clk 0:00:34]}
37... Rg8 {[%clk 0:00:14]} 38. Qf2 {[%clk 0:00:25]} 38... Qf4 {[%clk 0:00:13.8]}
39. Rd7 {[%clk 0:00:25]} 39... h6 {[%clk 0:00:13.7]} 40. Kg2 {[%clk 0:00:25.1]}
40... Ra8 {[%clk 0:00:11.7]} 41. Qc2 {[%clk 0:00:19.8]} 41... Qg5+ {[%clk
0:00:11.1]} 42. Kf2 {[%clk 0:00:19.3]} 42... Ra1 {[%clk 0:00:09.7]} 43. Rd8+
{[%clk 0:00:18.7]} 43... Kh7 {[%clk 0:00:08.7]} 44. e5+ {[%clk 0:00:19.4]} 44...
f5 {[%clk 0:00:09.1]} 45. Rd1 {[%clk 0:00:13.7]} 45... Ra3 {[%clk 0:00:06.6]}
46. Rd3 {[%clk 0:00:09.2]} 46... Ra1 {[%clk 0:00:05]} 47. Rd1 {[%clk 0:00:09.4]}
47... Ra3 {[%clk 0:00:04.4]} 48. Qe2 {[%clk 0:00:09.4]} 48... Qh4+ {[%clk
0:00:03.4]} 49. Kg2 {[%clk 0:00:10]} 49... Qg5+ {[%clk 0:00:03.9]} 50. Kh1
{[%clk 0:00:10.5]} 50... Qf4 {[%clk 0:00:01.8]} 51. Rf1 {[%clk 0:00:10.7]} 51...
Re3 {[%clk 0:00:01.8]} 52. Qg2 {[%clk 0:00:09.2]} 52... Rxe5 {[%clk 0:00:02.7]}
53. h3 {[%clk 0:00:09.1]} 1-0